Cogmind - Beta 16 @@@ ROGUE MODE // 2025.11.02 @ 23:19:06 Player: fantomas Result: Destroyed by Y-45 Defender with Heavy Assault Rifle Performance ------------- Evolutions (1) 500 Regions Visited (2) 400 Robots Destroyed (12) 60 Value Destroyed (183) 183 Prototype IDs (0) 0 Alien Tech Used (0) 0 Bonus (0) 0 TOTAL SCORE: 1143 Bonus ------- None Cogmind --------- Core Integrity 0/400 Matter 47/300 Energy 100/100 System Corruption 0% Temperature Cool (9) Movement Core (700) Ox13 Location -9/Materials Parts ------- > --- POWER (1) -------- (None) > --- PROPULSION (2) --- (None) > --- UTILITY (2) ------ High-capacity Storage Unit > --- WEAPON (4) ------- (None) > --- INVENTORY (20) --- Improved Signal Interpreter Improved Propulsion Shielding Improved Propulsion Shielding Peak State ------------ > --- POWER ------------ Light Ion Engine > --- PROPULSION ------- Wheel > --- UTILITY ---------- High-capacity Storage Unit Medium Matter Pod > --- WEAPON ----------- Assault Rifle Flak Cannon Flak Cannon Grenade Launcher > --- INVENTORY -------- (None) [Rating: 12] Favorites ----------- Power Light Ion Engine Engine Light Ion Engine Propulsion Wheel Wheel Wheel Utility Medium Matter Pod Storage Medium Matter Pod Weapon Assault Rifle Energy Gun Medium Laser Ballistic Gun Assault Rifle Ballistic Cannon Flak Cannon Launcher Grenade Launcher Build | -11 -10 -9 ------- Run | Yrd Mat Mat Slots Evolved 2 | . . 2 Power . | . . . Propulsion . | . . . Utility . | . . . Weapon 2 | . . 2 Parts Attached 12 | 5 5 2 Power 2 | 1 1 . Engine 2 | 1 1 . Core . | . . . Reactor . | . . . Propulsion 2 | 2 . . Treads . | . . . Leg . | . . . Wheel 2 | 2 . . Hover . | . . . Flight . | . . . Utility 3 | . 3 . Device . | . . . Storage 3 | . 3 . Processor . | . . . Hackware . | . . . Protection . | . . . Artifact . | . . . Weapon 5 | 2 1 2 Energy Gun 1 | 1 . . Energy Cannon . | . . . Ballistic Gun 1 | 1 . . Ballistic Cannon 2 | . . 2 Launcher 1 | . 1 . Special Weapon . | . . . Impact Weapon . | . . . Slashing Weapon . | . . . Piercing Weapon . | . . . Special Melee Weapon . | . . . Unidentified Prototypes . | . . . Parts Lost 8 | . 1 7 Power 1 | . . 1 Propulsion 2 | . 1 1 Utility 1 | . . 1 Weapon 4 | . . 4 Highest Loss Streak 6 | . 1 6 To Critical Strikes . | . . . Average Backups 1 | . 1 2 Power . | . . . Propulsion . | . . . Utility 1 | . . 2 Weapon . | . . . Tool/Special . | . . . Unused Backups 9 | . 6 3 Power . | . . . Propulsion . | . . . Utility 3 | . . 3 Weapon 5 | . 5 . Tool/Special 1 | . 1 . Average Slot Usage (%) 79 | . 79 80 Engine 11 | . 13 8 Wheel 15 | . 19 10 Storage 18 | . 16 21 Energy Gun 4 | . 7 . Ballistic Gun 12 | . 14 10 Ballistic Cannon 7 | . . 18 Launcher 7 | . 6 10 Peak Build Rating 12 | 5 6 12 Average Rating 7 | 3 5 10 On Entrance 3 | . 5 6 Avg Prop Armor Cover (%) . | . . . Naked Turns . | . . . Heaviest Build 62 | 7 50 62 Greatest Support 20 | 20 20 10 Greatest Overweight (x) 13 | . 4 13 Average Overweight (x) 2 | . 1 5 Largest Inventory Capacity 20 | 5 20 20 Average Capacity 14 | 5 13 20 Most Carried 5 | . 5 3 Average Carried 1 | . 1 2 Final Capacity 20 | 5 20 20 Final Carried 3 | . 2 3 Class Distribution -------------------- 67% | Mutant 32% | Gunner Dominant Class ---------------- Mutant | -10/Materials Gunner | -9/Materials Resources | -11 -10 -9 ----------- Run | Yrd Mat Mat Matter Collected 165 | 57 92 16 Remotely . | . . . Salvage Created 258 | 59 186 13 Parts 19 | . 18 1 Haulers Intercepted . | . . . Recyclers Shooed . | . . . Parts Field Recycled . | . . . Retrieved Matter . | . . . Parts Self-Destructed . | . . . Prevented . | . . . Parts Restored . | . . . Kills | -11 -10 -9 ------- Run | Yrd Mat Mat Combat Hostiles Destroyed 7 | 1 5 1 Guns 6 | 1 5 . Cannons 1 | . . 1 Classes Destroyed 5 | 2 3 . Worker 2 | 1 1 . Tunneler 1 | . 1 . Watcher 2 | . 2 . Swarmer 4 | . 3 1 Grunt 3 | 1 2 . Best Kill Streak 4 | 1 4 1 Combat Bots Only 2 | 1 2 1 Max Kills in Single Turn 2 | 1 2 1 Gunslinging 1 | . 1 . Exploded . | . . . Melee . | . . . Uniques/NPCs Destroyed . | . . . Combat | -11 -10 -9 -------- Run | Yrd Mat Mat Hostile Shots Fired 128 | 4 30 94 Missed 30 | . 8 22 Hits 98 | 4 22 72 Melee 12 | . . 12 Projectile 86 | 4 22 60 Critical Strikes 2 | . . 2 Damage Taken 1294 | 43 201 1050 Core 496 | 21 64 411 Absorbed by Shields . | . . . Core Remaining (%) 78 | 91 66 . Volleys Fired 35 | 6 26 3 Largest 2 | 2 2 1 Hottest 70 | 70 70 37 Shots Fired 60 | 12 45 3 Gun 56 | 12 42 2 Cannon 1 | . . 1 Launcher 3 | . 3 . Special . | . . . Kinetic 35 | 6 26 3 Thermal 22 | 6 16 . Explosive 3 | . 3 . Electromagnetic . | . . . Robot Hit Streak 8 | 3 8 2 Robot Miss Streak 10 | 3 10 2 Penetration Max . | . . . Secondary Targets 2 | . 2 . Max Gunslinging Chain 1 | . 1 . Shots Hit Robots 21 | 6 14 1 Core Hits 16 | 3 11 2 Critical Kills . | . . . Critical Parts Destroyed . | . . . Critical Strikes 1 | . 1 . Burn 1 | . 1 . Melee Attacks . | . . . Impact . | . . . Slashing . | . . . Piercing . | . . . Sneak Attacks . | . . . Combat Hostiles . | . . . Follow-up Attacks . | . . . Damage Inflicted 354 | 76 246 32 Guns 322 | 76 246 . Cannons 32 | . . 32 Explosions . | . . . Melee . | . . . Ramming . | . . . Kinetic 206 | 40 134 32 Thermal 148 | 36 112 . Explosive . | . . . Electromagnetic . | . . . Impact . | . . . Slashing . | . . . Piercing . | . . . Highest Corruption . | . . . Average Corruption . | . . . Corruption Purged . | . . . Corruption Blocked . | . . . Overload Shots . | . . . Overflow Damage . | . . . Projectiles . | . . . Explosions . | . . . Melee . | . . . Knockbacks 1 | . . 1 Impact . | . . . Kinetic 1 | . . 1 Secondary . | . . . Self-Inflicted Damage . | . . . Shots . | . . . Rammed . | . . . Targets Rammed . | . . . Kicked . | . . . Crushed . | . . . Highest Temperature 105 | 45 105 . Average Temperature 29 | 20 33 . Received Heat Transfer 288 | 24 42 222 Siege Activations . | . . . Martial Activations . | . . . Shielding Activations . | . . . Robots Disrupted . | . . . Combat Hostiles . | . . . Robots Corrupted . | . . . Combat Hostiles . | . . . Parts Fried . | . . . Impact Corruptions . | . . . Robots Melted . | . . . Combat Hostiles . | . . . Parts Melted 2 | 1 1 . Heat Transferred 518 | 111 407 . Parts Sabotaged . | . . . Parts Stolen . | . . . Parts Stripped . | . . . Power Chain Reactions . | . . . Alert | -11 -10 -9 ------- Run | Yrd Mat Mat Maximum Alert Level . | . . . Low Security (%) 100 | 100 100 100 Level 1 . | . . . Level 2 . | . . . Level 3 . | . . . Level 4 . | . . . Level 5 . | . . . High Security . | . . . Max Security . | . . . Peak Influence 65 | 20 65 20 Initial 13 | . 13 . Average 11 | 3 21 . Influence Increases 189 | 25 144 20 Destroy 0b10 Robot/C 140 | 20 100 20 Destroy 0b10 Robot/NC 25 | 5 20 . Destroy Leader 14 | . 14 . Destroy Structure 10 | . 10 . Influence Decreases 189 | 5 164 20 Entered New Map 7 | . 7 . Time Decay 152 | 5 147 . Lost Part 30 | . 10 20 Squads Dispatched . | . . . Investigation . | . . . Extermination . | . . . Reinforcement . | . . . Assault . | . . . Garrison . | . . . Intercept . | . . . Searches Triggered . | . . . Construction Impeded . | . . . Haulers Reinforced . | . . . Active Scanning Responses . | . . . Cargo Convoy Interrupts . | . . . Stealth | -11 -10 -9 --------- Run | Yrd Mat Mat Distress Signals 1 | . . 1 Communications Jammed . | . . . Distress Signals . | . . . Times Spotted 17 | 1 7 9 Peak Tracking Total 9 | 1 3 9 Tactical Retreats . | . . . Traps | -11 -10 -9 ------- Run | Yrd Mat Mat Traps Triggered . | . . . Indirectly . | . . . Trap Hack Attempts . | . . . Triggered . | . . . Disarmed . | . . . Reprogrammed . | . . . Reused . | . . . Traps Extracted . | . . . Installed . | . . . Triggered . | . . . Machines | -11 -10 -9 ---------- Run | Yrd Mat Mat Machines Disabled . | . . . Max in Single Turn . | . . . Machines Repaired . | . . . Machines Dismantled . | . . . Machines Sabotaged . | . . . Overloaded Fab Kills . | . . . Hacking | -11 -10 -9 --------- Run | Yrd Mat Mat Machines Accessed . | . . . Terminals . | . . . Fabricators . | . . . Repair Stations . | . . . Recycling Units . | . . . Scanalyzers . | . . . Garrison Access . | . . . Total Hacks . | . . . Successful . | . . . Failed . | . . . Catastrophic . | . . . Database Lockouts . | . . . Manual . | . . . Terminals . | . . . Fabricators . | . . . Repair Stations . | . . . Recycling Units . | . . . Scanalyzers . | . . . Garrison Access . | . . . Terminal Hacks . | . . . Fabricator Hacks . | . . . Repair Station Hacks . | . . . Recycling Unit Hacks . | . . . Scanalyzer . | . . . Garrison Access Hacks . | . . . Unauthorized Hacks . | . . . Terminals . | . . . Fabricators . | . . . Repair Stations . | . . . Recycling Units . | . . . Scanalyzers . | . . . Garrison Access . | . . . Data Cores Recovered . | . . . Used . | . . . Hacking Detections . | . . . Full Trace Events . | . . . Feedback Events . | . . . Feedback Blocked . | . . . Robot Schematics Acquired . | . . . Robots Built . | . . . Authchips . | . . . Time . | . . . Total Robot Build Rating . | . . . Part Schematics Acquired . | . . . Parts Built . | . . . Authchips . | . . . Time . | . . . Total Part Build Rating . | . . . Part Studies Acquired . | . . . Parts Repaired . | . . . Time . | . . . Parts Recycled . | . . . Recycled Matter . | . . . Retrieved Matter . | . . . Retrieved Components . | . . . Parts Scanalyzed . | . . . Part Schematics Acquired . | . . . Parts Damaged . | . . . Bothacking | -11 -10 -9 ------------ Run | Yrd Mat Mat Used RIF Installer . | . . . Robots Hacked . | . . . Non-combat . | . . . Combat . | . . . Robot Hacks Applied . | . . . Relay Couplers Released . | . . . Fabnet Peak Effective % . | . . . Robots Rewired . | . . . Allies Hacked . | . . . Hacks Repelled . | . . . Allies | -11 -10 -9 -------- Run | Yrd Mat Mat Total Allies . | . . . Largest Group . | . . . Highest-Rated Group . | . . . Highest-Rated Ally . | . . . Total Orders . | . . . Ally Attacks . | . . . Total Damage . | . . . Kills . | . . . Allies Corrupted . | . . . Allies Melted . | . . . Intel | -11 -10 -9 ------- Run | Yrd Mat Mat Active Infowar (turns) . | . . . Robot Analysis Total . | . . . Derelict Logs Recovered . | . . . Drone Launches . | . . . Drone Recoveries . | . . . Exploration | -11 -10 -9 ------------- Run | Yrd Mat Mat Turns Passed 767 | 92 390 285 Spaces Moved 539 | 94 284 161 Core 30 | 28 . 2 Treads . | . . . Legs . | . . . Wheels 509 | 66 284 159 Hover . | . . . Flight . | . . . Fastest Speed 50 | 50 80 140 Average Speed 119 | 71 105 170 Slowest Speed 700 | 80 140 700 Overloaded Moves . | . . . Propulsion Burnouts . | . . . Robots Hopped . | . . . Potential Cave-ins . | . . . Cave-ins Triggered . | . . . Exploration Rate (%) 20 | 9 40 11 Regions Visited 2 Branch Regions . Pre-discovered Areas . | . . . Known Exits Taken . | . . . Unknown Exits Taken 2 | 1 1 . Scrap Searched . | . . . Spaces Dug 5 | . 5 . Terrain Destroyed 10 | . 10 . Melee . | . . . Projectile . | . . . AOE 10 | . 10 . Terrain Rammed . | . . . Walls Destroyed . | . . . Machines Disabled . | . . . Actions | -11 -10 -9 --------- Run | Yrd Mat Mat Total 607 | 104 332 171 Wait . | . . . Move 537 | 93 283 161 Hop . | . . . Pick Up 11 | . 8 3 Fast Attach 10 | 5 3 2 Attach 1 | . 1 . Detach 2 | . 2 . Swap 1 | . 1 . Drop 10 | . 8 2 Fire 35 | 6 26 3 Melee . | . . . Ram . | . . . Kick . | . . . Crush . | . . . Escape Stasis . | . . . Rewire . | . . . Trap . | . . . Miscellaneous . | . . . Route ------- -11/Scrapyard -10/Materials (discovered 2 exits: [*Mat] / [*Min]) -9/Materials History --------- Turn | Location | Event 2 | -11/Scrapyard | Met Revision 17 71 | -11/Scrapyard | Discovered new exit (range 8) 93 | -11/Scrapyard | Entered Materials 266 | -10/Materials | Discovered new exit (range 7) 301 | -10/Materials | Build established: Mutant 352 | -10/Materials | Discovered new exit (range 16) 483 | -10/Materials | Entered another Materials area 483 | -9/Materials | Evolved 2 slots: Weapon x2 758 | -9/Materials | Core integrity fell below 50% 766 | -9/Materials | Core integrity fell below 20% 768 | -9/Materials | Destroyed by Y-45 Defender with Heavy Assault Rifle Last Messages --------------- Dropped Med. Laser. Acquired Flak Cannon. [Achievement: Oops] Acquired Imp. Propulsion Shielding. Acquired Imp. Signal Interpreter. K-01 Serf collects debris. W-16 Scout sends out distress signal. K-01 Serf collects debris. Lgt. Ion Engine destroyed. Assault Rifle destroyed. Grenade Launcher destroyed. S-10 Pest destroyed. Acquired 16 matter. Flak Cannon destroyed. Wheel destroyed. S-10 Pest knocked back. S-10 Pest destroyed. Flak Cannon destroyed. S-10 Pest destroyed. Med. Matter Pod destroyed. Map ----- +----------------------------------------------------+ | ?????????????????????????????????????????????????? | | ?????????????????????????????????????????????????? | | ?????????????????????????????????????????????????? | | ?????????????????????????????????????????????????? | | ?????????????????????????????????????????????????? | | ?????????????????????????????????????????????????? | | ?????????????????????????????????????????????????? | | ?????????????????????????????????????????????????? | | ?????????????????????????????????????????????????? | | ?????????????????????????????????????????????????? | | ?????????????????????????????????????????????????? | | ?????????????????????????????????????????????????? | | ?????????????????????????????????????????????????? | | ?????????????????????????????????????????????????? | | ?????????????????????????????????????????????????? | | ?????????????????????????????????????????????????? | | ???????????????????????????? ????????????????????? | | ???????????????????????????? ????????????????????? | | ???????????????????????????? ????????????????????? | | ???????????????????????????? #???????????????????? | | ????????????#?????########## ???????????????????? | | ????????????# ????# # ???????????????????? | | ????????????# ????# """" # ???????????????????? | | ???????????## ???# """" # ???????????????????? | | ???????????? ???# """" # #???????????????????? | | ????????????? ??# g @ # #???????????????????? | | ?????????????? ??# """" l # #???????????????????? | | ??????????????# ?# """"g%s# #???????????????????? | | ??????????????# ?# """"Y # ###########?????????? | | ??????????????# # [% # # #?????????? | | ??????????????# #####r#### # #?????????? | | ??????????????# + #?????????? | | ?????????????## * ##### #?????????? | | ?????????????#T #???# #?????????? | | ?????????????## """ "#??# #?????????? | | ??????????????# """ T#??# #?????????? | | ??????????????# """ "#??# #?????????? | | ????????????? + ##??##+###+###### ###???? | | ??????????? # #????# ??? | | ??????????" # ] ###### ??? | | ?????????"" ?# ??? | | ?????????" ??#######+#########+##########+#####?? | | ???????? ?????????????????# #??# #?? | | ????????##??????????????????# #??# """ #?? | | ????????????????????????????# #??# """"" #?? | | ????????????????????????????# #??# """"" #?? | | ????????????????????????????# #### """"" #?? | | ????????????????????????????# + + """ #?? | | ????????????????????????????########### #?? | | ??????????????????????????????????????# #?? | +----------------------------------------------------+ Best States ------------- Heat Dissipation 28 Energy Generation 10 Energy Capacity 125 Matter Stores 114 Matter Capacity 400 Sight Range 16 Terrain Scan Density 10 Evasion (%) 50 Item Schematics ----------------- None Robot Schematics ------------------ None Fabricated ------------ Nothing Repaired ---------- Nothing Studied --------- None Alien Tech Used ----------------- None Achievements -------------- DATA ERROR: Steam Global Achievement% Oops Organ Harvest Challenges ------------ None Game ------ Seed NuclearRagnarokExtractor Manual? 0 Play Time 00:13:40 Cumulative 0.6 hours Start 2025.11.02 @ 23:05:03 End 2025.11.02 @ 23:19:06 Sessions 1 Manual Loads 0 Difficulty Rogue Special Mode None Game No. 3 Rogue 3 Adventurer 0 Explorer 0 Win Type - Total 0 Types 0/0/0/0/0/0/0/0/0/0 Lore% 0 Gallery% 1 Achievement% 1 Wizard Run 0 Options --------- Layout 1 ASCII 0 Keyboard 1 Movement Arrows Keybinds 0 Fullscreen 1 Font 24/Smallcaps Map View 50x35 Zoom Use 1% Tactical HUD 0 Map Filters NONE Filters NONE Steam 1 RUN: 37effd5f-0524-448a-a334-b26ad591d338